Cogmind - Beta 12 --- EXPLORER MODE // 2024.01.07 @ 16:26:51 // Winter2022/Polymind Player: Storm Mk9 Result: Self-destructed Performance ------------- Evolutions (2) 1000 Regions Visited (5) 1000 Robots Destroyed (0) 0 Value Destroyed (0) 0 Prototype IDs (0) 0 Alien Tech Used (0) 0 Bonus (1720) 1720 TOTAL SCORE: 3490 Bonus ------- Polymind Skill 1450 Pacifist 270 Cogmind --------- Core Integrity 467/550 Matter 0/0 Energy 50/50 System Corruption 0% Temperature Cool (9) Movement Rolling (80) Location -8/Materials Parts ------- > --- POWER (1) -------- Light Ion Engine > --- PROPULSION (2) --- Wheel > --- UTILITY (2) ------ Recalibrator > --- WEAPON (0) ------- (None) > --- INVENTORY (12) --- Backup Power I Nuclear Core VSS Leg Backup Propulsion I Backup Propulsion I Backup Propulsion I Backup Plating I Backup Plating I Backup Laser I Backup Laser I Backup Laser I Backup Laser I Peak State ------------ > --- POWER ------------ Light Ion Engine > --- PROPULSION ------- Wheel Wheel > --- UTILITY ---------- Machine Analyzer Recalibrator > --- WEAPON ----------- (None) > --- INVENTORY -------- Backup Power I Backup Power I Backup Propulsion I Backup Propulsion I Backup Propulsion I Backup Propulsion I Backup Plating I Backup Plating I Backup Laser I Backup Laser I Backup Laser I Backup Laser I [Rating: 11] Favorites ----------- Power Light Ion Engine Engine Light Ion Engine Propulsion Wheel Wheel Wheel Utility Machine Analyzer Device Recalibrator Processor Machine Analyzer Weapon None Build | -11 -10 -10 -10 -9 -8 ------- Run | Jun Mat Min Exi Min Mat Slots Evolved . | . . . . . . Power . | . . . . . . Propulsion . | . . . . . . Utility . | . . . . . . Weapon . | . . . . . . Parts Attached . | . . . . . . Power . | . . . . . . Engine . | . . . . . . Core . | . . . . . . Reactor . | . . . . . . Propulsion . | . . . . . . Treads . | . . . . . . Leg . | . . . . . . Wheel . | . . . . . . Hover . | . . . . . . Flight . | . . . . . . Utility . | . . . . . . Device . | . . . . . . Storage . | . . . . . . Processor . | . . . . . . Hackware . | . . . . . . Protection . | . . . . . . Artifact . | . . . . . . Weapon . | . . . . . . Energy Gun . | . . . . . . Energy Cannon . | . . . . . . Ballistic Gun . | . . . . . . Ballistic Cannon . | . . . . . . Launcher . | . . . . . . Special Weapon . | . . . . . . Impact Weapon . | . . . . . . Slashing Weapon . | . . . . . . Piercing Weapon . | . . . . . . Special Melee Weapon . | . . . . . . Unidentified Prototypes . | . . . . . . Parts Lost 2 | . . . . . 2 Power . | . . . . . . Propulsion 1 | . . . . . 1 Utility 1 | . . . . . 1 Weapon . | . . . . . . Highest Loss Streak 2 | . . . . . 2 To Critical Strikes . | . . . . . . Average Slot Usage (%) 43 | . . . . . 76 Engine 8 | . . . . . 15 Wheel 16 | . . . . . 30 Device 8 | . . . . . 15 Processor 8 | . . . . . 15 Naked Turns 223 | . 33 11 66 69 44 Heaviest Build 4 | . . . . . 4 Greatest Support 20 | 3 3 3 3 3 20 Greatest Overweight (x) . | . . . . . . Average Overweight (x) . | . . . . . . Largest Inventory Capacity 12 | . . . . . 12 Average Capacity 5 | . . . . . 9 Most Carried 12 | . . . . . 12 Average Carried 5 | . . . . . 9 Final Capacity 12 | . . . . . 12 Final Carried 12 | . . . . . 12 Class Distribution -------------------- 57% | Cogmind 42% | Mechanic Dominant Class ---------------- Cogmind | -10/Materials Cogmind | -10/Mines Cogmind | -10/Exiles Cogmind | -9/Mines Mechanic | -8/Materials Resources | -11 -10 -10 -10 -9 -8 ----------- Run | Jun Mat Min Exi Min Mat Matter Collected . | . . . . . . Remotely . | . . . . . . Salvage Created . | . . . . . . Parts . | . . . . . . Haulers Intercepted . | . . . . . . Recyclers Shooed . | . . . . . . Parts Field Recycled . | . . . . . . Retrieved Matter . | . . . . . . Parts Self-Destructed . | . . . . . . Prevented . | . . . . . . Kills | -11 -10 -10 -10 -9 -8 ------- Run | Jun Mat Min Exi Min Mat Combat Hostiles Destroyed . | . . . . . . Classes Destroyed . | . . . . . . Best Kill Streak . | . . . . . . Combat Bots Only . | . . . . . . Max Kills in Single Turn . | . . . . . . Gunslinging . | . . . . . . Exploded . | . . . . . . Melee . | . . . . . . Uniques/NPCs Destroyed . | . . . . . . Combat | -11 -10 -10 -10 -9 -8 -------- Run | Jun Mat Min Exi Min Mat Damage Taken 202 | . . . . 4 198 Core 87 | . . . . 4 83 Absorbed by Shields . | . . . . . . Core Remaining (%) 99 | 100 . . . 98 . Volleys Fired . | . . . . . . Largest . | . . . . . . Hottest . | . . . . . . Shots Fired . | . . . . . . Gun . | . . . . . . Cannon . | . . . . . . Launcher . | . . . . . . Special . | . . . . . . Kinetic . | . . . . . . Thermal . | . . . . . . Explosive . | . . . . . . Electromagnetic . | . . . . . . Robot Hit Streak . | . . . . . . Robot Miss Streak . | . . . . . . Penetration Max . | . . . . . . Secondary Targets . | . . . . . . Shots Hit Robots . | . . . . . . Core Hits . | . . . . . . Critical Kills . | . . . . . . Critical Parts Destroyed . | . . . . . . Critical Strikes . | . . . . . . Melee Attacks . | . . . . . . Impact . | . . . . . . Slashing . | . . . . . . Piercing . | . . . . . . Sneak Attacks . | . . . . . . Combat Hostiles . | . . . . . . Follow-up Attacks . | . . . . . . Damage Inflicted . | . . . . . . Guns . | . . . . . . Cannons . | . . . . . . Explosions . | . . . . . . Melee . | . . . . . . Ramming . | . . . . . . Kinetic . | . . . . . . Thermal . | . . . . . . Explosive . | . . . . . . Electromagnetic . | . . . . . . Impact . | . . . . . . Slashing . | . . . . . . Piercing . | . . . . . . Highest Corruption . | . . . . . . Average Corruption . | . . . . . . Corruption Purged . | . . . . . . Corruption Blocked . | . . . . . . Overload Shots . | . . . . . . Overflow Damage . | . . . . . . Projectiles . | . . . . . . Explosions . | . . . . . . Melee . | . . . . . . Knockbacks . | . . . . . . Impact . | . . . . . . Kinetic . | . . . . . . Secondary . | . . . . . . Self-Inflicted Damage . | . . . . . . Shots . | . . . . . . Rammed . | . . . . . . Targets Rammed . | . . . . . . Kicked . | . . . . . . Crushed . | . . . . . . Highest Temperature 12 | . . . . . 12 Average Temperature 7 | . . . . . 7 Received Heat Transfer 171 | . . . . . 171 Siege Activations . | . . . . . . Robots Corrupted . | . . . . . . Combat Hostiles . | . . . . . . Parts Fried . | . . . . . . Impact Corruptions . | . . . . . . Robots Melted . | . . . . . . Combat Hostiles . | . . . . . . Parts Melted . | . . . . . . Heat Transferred . | . . . . . . Parts Sabotaged . | . . . . . . Parts Stolen . | . . . . . . Parts Stripped . | . . . . . . Power Chain Reactions . | . . . . . . Missiles Intercepted . | . . . . . . Alert | -11 -10 -10 -10 -9 -8 ------- Run | Jun Mat Min Exi Min Mat Peak Influence 30 | . 30 8 . . 30 Initial 8 | . . 8 . . . Average 17 | . 15 8 . . 24 Maximum Alert Level . | . . . . . . Low Security (%) 100 | 100 100 100 . 100 100 Level 1 . | . . . . . . Level 2 . | . . . . . . Level 3 . | . . . . . . Level 4 . | . . . . . . Level 5 . | . . . . . . High Security . | . . . . . . Max Security . | . . . . . . Squads Dispatched 1 | . . . . . 1 Investigation . | . . . . . . Extermination . | . . . . . . Reinforcement 1 | . . . . . 1 Assault . | . . . . . . Garrison . | . . . . . . Intercept . | . . . . . . Searches Triggered . | . . . . . . Construction Impeded . | . . . . . . Haulers Reinforced . | . . . . . . Active Scanning Responses . | . . . . . . Cargo Convoy Interrupts . | . . . . . . Stealth | -11 -10 -10 -10 -9 -8 --------- Run | Jun Mat Min Exi Min Mat Distress Signals 2 | . . . . . 2 Communications Jammed . | . . . . . . Distress Signals . | . . . . . . Times Spotted 13 | . 1 . . 2 10 Peak Tracking Total 10 | . 1 . . 2 10 Tactical Retreats . | . . . . . . Traps | -11 -10 -10 -10 -9 -8 ------- Run | Jun Mat Min Exi Min Mat Traps Triggered . | . . . . . . Indirectly . | . . . . . . Trap Hack Attempts . | . . . . . . Triggered . | . . . . . . Disarmed . | . . . . . . Reprogrammed . | . . . . . . Reused . | . . . . . . Traps Extracted . | . . . . . . Installed . | . . . . . . Triggered . | . . . . . . Machines | -11 -10 -10 -10 -9 -8 ---------- Run | Jun Mat Min Exi Min Mat Machines Disabled . | . . . . . . Max in Single Turn . | . . . . . . Machines Repaired . | . . . . . . Machines Sabotaged . | . . . . . . Overloaded Fab Kills . | . . . . . . Hacking | -11 -10 -10 -10 -9 -8 --------- Run | Jun Mat Min Exi Min Mat Machines Accessed 5 | . 1 . 1 . 3 Terminals 3 | . . . . . 3 Fabricators . | . . . . . . Repair Stations . | . . . . . . Recycling Units 1 | . 1 . . . . Scanalyzers . | . . . . . . Garrison Access . | . . . . . . Total Hacks 9 | . 1 . 1 . 7 Successful 4 | . 1 . 1 . 2 Failed 5 | . . . . . 5 Catastrophic 2 | . . . . . 2 Database Lockouts . | . . . . . . Manual 7 | . . . . . 7 Terminals 7 | . . . . . 7 Fabricators . | . . . . . . Repair Stations . | . . . . . . Recycling Units 1 | . 1 . . . . Scanalyzers . | . . . . . . Garrison Access . | . . . . . . Terminal Hacks 1 | . . . 1 . . Record 1 | . . . 1 . . Fabricator Hacks . | . . . . . . Repair Station Hacks . | . . . . . . Recycling Unit Hacks 1 | . 1 . . . . Report Inventory 1 | . 1 . . . . Scanalyzer . | . . . . . . Garrison Access Hacks . | . . . . . . Unauthorized Hacks 2 | . . . . . 2 Terminals 2 | . . . . . 2 Botnet 2 | . . . . . 2 Fabricators . | . . . . . . Repair Stations . | . . . . . . Recycling Units . | . . . . . . Scanalyzers . | . . . . . . Garrison Access . | . . . . . . Data Cores Recovered . | . . . . . . Used . | . . . . . . Hacking Detections 3 | . . . . . 3 Full Trace Events . | . . . . . . Feedback Events . | . . . . . . Feedback Blocked . | . . . . . . Robot Schematics Acquired . | . . . . . . Robots Built . | . . . . . . Authchips . | . . . . . . Time . | . . . . . . Total Robot Build Rating . | . . . . . . Part Schematics Acquired . | . . . . . . Parts Built . | . . . . . . Authchips . | . . . . . . Time . | . . . . . . Total Part Build Rating . | . . . . . . Parts Repaired . | . . . . . . Time . | . . . . . . Parts Recycled . | . . . . . . Recycled Matter . | . . . . . . Retrieved Matter . | . . . . . . Retrieved Components . | . . . . . . Parts Scanalyzed . | . . . . . . Part Schematics Acquired . | . . . . . . Parts Damaged . | . . . . . . Bothacking | -11 -10 -10 -10 -9 -8 ------------ Run | Jun Mat Min Exi Min Mat Used RIF Installer . | . . . . . . Robots Hacked 1 | . . . . . 1 Non-combat 1 | . . . . . 1 Combat . | . . . . . . Robot Hacks Applied 1 | . . . . . 1 find_station 1 | . . . . . 1 Relay Couplers Released . | . . . . . . Fabnet Peak Effective % . | . . . . . . Robots Rewired . | . . . . . . Allies Hacked . | . . . . . . Hacks Repelled . | . . . . . . Allies | -11 -10 -10 -10 -9 -8 -------- Run | Jun Mat Min Exi Min Mat Total Allies . | . . . . . . Largest Group . | . . . . . . Highest-Rated Group . | . . . . . . Highest-Rated Ally . | . . . . . . Total Orders . | . . . . . . Ally Attacks . | . . . . . . Total Damage . | . . . . . . Kills . | . . . . . . Allies Corrupted . | . . . . . . Allies Melted . | . . . . . . Intel | -11 -10 -10 -10 -9 -8 ------- Run | Jun Mat Min Exi Min Mat Robot Analysis Total 1 | . . . . . 1 Derelict Logs Recovered . | . . . . . . Drone Launches . | . . . . . . Drone Recoveries . | . . . . . . Exploration | -11 -10 -10 -10 -9 -8 ------------- Run | Jun Mat Min Exi Min Mat Turns Passed 399 | 9 33 11 66 69 211 Spaces Moved 653 | 18 65 22 131 137 280 Core 459 | 18 65 22 131 137 86 Treads . | . . . . . . Legs . | . . . . . . Wheels 194 | . . . . . 194 Hover . | . . . . . . Flight . | . . . . . . Fastest Speed 50 | 50 50 50 50 50 50 Average Speed 58 | 50 50 50 50 50 70 Slowest Speed 80 | 50 50 50 50 50 80 Overloaded Moves . | . . . . . . Propulsion Burnouts . | . . . . . . Robots Hopped . | . . . . . . Cave-ins Triggered . | . . . . . . Exploration Rate (%) 23 | 4 13 7 48 45 23 Regions Visited 5 Branch Regions 3 Pre-discovered Areas 2 | . . . 1 1 . Known Exits Taken 5 | 1 1 1 1 1 . Unknown Exits Taken . | . . . . . . Scrap Searched . | . . . . . . Spaces Dug . | . . . . . . Terrain Destroyed . | . . . . . . Melee . | . . . . . . Projectile . | . . . . . . AOE . | . . . . . . Terrain Rammed . | . . . . . . Walls Destroyed . | . . . . . . Machines Disabled . | . . . . . . Actions | -11 -10 -10 -10 -9 -8 --------- Run | Jun Mat Min Exi Min Mat Total 661 | 17 64 21 130 136 293 Wait 9 | . . . . . 9 Move 648 | 17 64 21 130 136 280 Hop . | . . . . . . Pick Up 2 | . . . . . 2 Fast Attach . | . . . . . . Attach . | . . . . . . Detach . | . . . . . . Swap . | . . . . . . Drop 2 | . . . . . 2 Fire . | . . . . . . Melee . | . . . . . . Ram . | . . . . . . Kick . | . . . . . . Crush . | . . . . . . Escape Stasis . | . . . . . . Rewire . | . . . . . . Trap . | . . . . . . Miscellaneous . | . . . . . . Route ------- -11/Junkyard -10/Materials -10/Mines -10/Exiles -9/Mines -8/Materials History --------- Turn | Location | Event 5 | -11/Junkyard | Identified exit to Materials 5 | -11/Junkyard | Discovered exit to Materials (range 12) 10 | -11/Junkyard | Entered Materials 31 | -10/Materials | Identified exit to Mines 31 | -10/Materials | Discovered exit to Mines (range 7) 43 | -10/Materials | Entered Mines 52 | -10/Mines | Deemed a non-threat by the Exiles lab entrance 52 | -10/Mines | Identified exit to Exiles 52 | -10/Mines | Discovered exit to Exiles (range 5) 54 | -10/Mines | Entered Exiles 67 | -10/Exiles | Met 8R-AWN 75 | -10/Exiles | Met EX-HEX 95 | -10/Exiles | Met EX-DEC 97 | -10/Exiles | Learned location of Zion (-7) 114 | -10/Exiles | Identified exit to Mines 114 | -10/Exiles | Discovered exit to Mines (range 12) 120 | -10/Exiles | Entered Mines 121 | -9/Mines | Learned location of Storage (-9) 127 | -9/Mines | Met a Derelict bent on vengeance 186 | -9/Mines | Identified exit to Materials 186 | -9/Mines | Discovered exit to Materials (range 6) 189 | -9/Mines | Entered Materials 400 | -8/Materials | Self-destructed Last Messages --------------- 00251_ Repair Station x1 00258_ Dropped Backup Propulsion I. 00259_ Acquired VSS Leg. 00298_ >> Machine Analyzer network decryption results: 00298_ Recycling Unit x1 00304_ >> Machine Analyzer network decryption results: 00304_ Terminal x1 00315_ Dropped Backup Power I. 00315_ Acquired Nuclear Core. 00356_ K-01 Serf collects debris. 00386_ >> Machine Analyzer network decryption results: 00386_ Scanalyzer x2 00388_ K-01 Serf collects debris. 00390_ Critical hit (Burn: +37). 00391_ W-25 Informer distress signal alerts nearby ally. 00392_ K-01 Serf collects debris. 00394_ Wheel destroyed. 00395_ >> Machine Analyzer network decryption results: 00395_ Terminal x3 00400_ Machine Analyzer destroyed. Map ----- +----------------------------------------------------+ | ??????????????????????????????????????# ###### | | ????????????????????????????????????#####+#####??# | | ????????????????????????????????????# #??# | | ????????????????????????????????????# #??# | | ????????????????????????????????????# + # | | ????????????????????????????????"""?# """ """ #??# | | ????????????????????????????????"""?# """ """ #??# | | ????????????????????????????????"""?# """ """ #??# | | ????????????????????????????????????# #??# | | ????????????????????????????????"""?# ! #??# | | ????????????????????????????????"""?#/##/######??? | | ????????????????????????????????"""?# ########? | | ????????????????T???????????????????# # """ #? | | ????????????????????????????????"""?# # """ #? | | ????????????????????????????????"""?# # """ #? | | ????????????????????????????????"""?# + #? | | ??"""???????????????????????????????# ## #? | | ??"""???????????????????????????"""?# ## #? | | ??"""?????????????????????????? """?# #########? | | ??????????????????????????????? """?# #????????? | | ??????????????????????????????? ????# #??#####?? | | ??"""?????????????????????????#+#???# #?? ??? | | ??"""?????????????????????????# #???# #? """??? | | ??"""???????????????########### ##### #? """#?? | | ????????????????????# "T" # # """#?? | | ????????????????????# m # # #?? | | ??"""???????????????# g g / #?? | | ??"""???????????????# # u ####+###?? | | ??"""???????????????########### #????????? | | ????????????????????????????# #????????? | | ????????????????????????????# ##??????"" | | ????????????????????????????# +?"" | | ????????????????????????????# ######### #?"" | | ????????????????????????????# #??????????????? | | ?????????????????????????######"####?????????????? | | ?????????????????????????# #?????????????? | | ?????????????????????????# "S #?????????????? | | ?????????????????????????# """ #?????????????? | | ?????????????????????????# "" !! #?????????????? | | ?????????????????????????# !! #?"""?????????? | | ?????????????????????????# = ! #?"""?????????? | | ?????????????????????????# #?"""?????????? | | ?????????????????????????? #?????????????? | | ?????????????????????????###########?????????????? | | ?????????????????????????????????????????????????? | | ?????????????????????????????????????????????????? | | ?????????????????????????????????????????????????? | | ?????????????????????????????????????????????????? | | ?????????????????????????????????????????????????? | | ?????????????????????????????????????????????????? | +----------------------------------------------------+ Best States ------------- Heat Dissipation 31 Energy Generation 15 Energy Capacity 100 Sight Range 16 Terrain Scan Density 10 Resistance: KI 35 Resistance: TH 35 Resistance: EX 35 Resistance: EM 35 Resistance: I 35 Resistance: S 35 Resistance: P 35 Evasion (%) 50 Offensive Hacking 20 Item Schematics ----------------- None Robot Schematics ------------------ None Fabricated ------------ Nothing Alien Tech Used ----------------- None Achievements -------------- None Challenges ------------ None Polymind | -11 -10 -10 -10 -9 -8 ---------- Run | Jun Mat Min Exi Min Mat Hosts 1 | . . . . . 1 Combat Hostiles . | . . . . . . Allies . | . . . . . . Unique Host Classes 1 | . . . . . 1 Average Host Suspicion 60 | . . . . . 60 Unsuspicious Activity 2 | . . . . . 2 Returns to Shadow . | . . . . . . Fuzzy Dispatches . | . . . . . . Protomatter Created . | . . . . . . Used 5 | . . . . . 5 Decayed . | . . . . . . Highest Spend 5 | . . . . . 5 Game ------ Seed NetworkBehemothSword Manual? 0 Play Time 00:12:22 Cumulative 140.3 hours Start 2024.01.07 @ 16:12:13 End 2024.01.07 @ 16:26:51 Sessions 1 Manual Loads 0 Difficulty Explorer Special Mode Winter2022/Polymind Game No. 68 Rogue 15 Adventurer 0 Explorer 53 Win Type - Total 6 Types 1/1/1/2/0/0/0/0/1 Lore% 59 Gallery% 60 Achievement% 66 Wizard Run 0 Options --------- ASCII 0 Keyboard 0 Movement Mouse Keybinds 0 Fullscreen 2 Font 18/SmallcapsGlow Map View 76x50 Tactical HUD 1 Map Filters NONE Filters NONE Steam 1 RUN: 4d980a83-b04a-4111-9060-d141c44fe491